bitfinex-derivatives/quotes_ETHF0:USTF0_20251021
["timestamp","ask_amount","ask_price","bid_price","bid_amount"]
[1761070500495,1.7586,3986.4,3986.2,0.45134]
[1761070500699,1.7586,3986.4,3986.0,0.45136]
[1761070500700,1.7586,3986.2,3986.0,0.45136]
[1761070500990,0.58649193,3986.1,3986.0,2.14407]
[1761070501191,2.3469659,3986.3,3986.2,1.6927]
[1761070501395,0.82741463,3986.3,3986.2,2.14404]
[1761070501585,0.5883659,3986.3,3986.2,2.14404]
[1761070501786,2.3469659,3986.3,3985.8,0.679]
[1761070501995,2.3469659,3986.3,3985.6,4.9005]
[1761070501996,1.7586,3986.0,3985.6,4.9005]
[1761070502291,3.2078,3986.3,3985.7,11.6341]
[1761070502292,1.7586,3985.8,3985.7,11.6341]
[1761070502498,2.3469659,3985.8,3985.7,11.6341]
[1761070502692,1.7586,3985.7,3985.1,3.2078]
[1761070502896,0.45144,3985.4,3985.1,3.2078]
[1761070503189,0.45147,3985.1,3984.8,9.557]
[1761070503386,1.7586,3984.9,3984.8,9.557]
[1761070503587,1.7586,3984.8,3984.4,0.00199527]
[1761070503794,1.7586,3984.6,3984.4,0.00199527]
[1761070503984,2.3469659,3984.5,3984.4,0.00199527]
[1761070504795,0.5883659,3984.5,3984.4,1.69469527]
[1761070504999,0.88590772,3985.4,3985.3,0.45145]
[1761070505196,4.09370772,3986.0,3985.9,2.14408]
[1761070505499,3.2078,3986.0,3985.9,11.84808]
[1761070505890,4.9664,3986.0,3985.9,9.704]
[1761070506091,0.88590772,3986.1,3985.7,11.8441]
[1761070506295,0.88590772,3986.1,3986.0,1.6927]
[1761070506489,0.88590772,3986.2,3986.1,2.14405]
[1761070506690,0.88590772,3986.5,3986.2,1.6927]
[1761070506890,0.88590772,3986.5,3986.3,10.14933]
[1761070507090,3.2078,3986.6,3986.3,10.14933]
[1761070507091,3.2078,3986.6,3986.5,2.14401]
[1761070507394,0.88590772,3986.8,3986.6,0.45129]
[1761070507601,2.64450772,3986.8,3986.6,0.45129]
[1761070508493,1.7586,3986.6,3985.9,1.6927]
[1761070508694,0.88590772,3986.7,3986.4,1.6927]
[1761070508903,2.64450772,3986.7,3986.5,9.685]
[1761070509200,1.7586,3986.6,3986.5,9.685]
[1761070509793,0.88590772,3986.8,3986.6,2.144]
[1761070509991,1.7586,3986.7,3986.5,0.45131]
[1761070510197,1.7586,3986.7,3986.6,9.676]
[1761070510501,1.7586,3986.3,3985.9,3.2078]
[1761070510796,1.7586,3986.3,3984.8,1.80774]
[1761070510797,1.7586,3985.9,3985.7,2.1441]
[1761070510995,1.7586,3986.0,3985.8,10.12639]
[1761070511191,1.7586,3986.0,3985.8,9.675]
[1761070511392,0.88838244,3986.2,3986.0,0.45137]
[1761070511594,0.88838244,3986.2,3986.1,1.6927]
[1761070511797,0.88838244,3986.6,3986.5,1.6927]
[1761070512000,3.2078,3986.7,3986.6,1.6927]
[1761070512199,4.9664,3986.7,3986.6,9.679]
[1761070512507,4.9664,3986.7,3986.2,9.68]
[1761070512508,1.7586,3986.6,3986.2,9.68]
[1761070512701,2.20994,3986.3,3986.2,9.68]
[1761070512898,7.20994,3986.3,3986.2,9.68]
[1761070513200,1.7586,3986.2,3986.1,9.68]
[1761070513591,0.88866041,3986.5,3986.1,9.68]
[1761070513798,0.88866041,3986.8,3986.6,2.144]
[1761070513994,0.89056977,3986.9,3986.8,2.14398]
[1761070514196,0.00190936,3986.9,3986.8,2.14398]
[1761070515299,1.7586,3986.8,3986.6,0.4513]
[1761070515491,0.00190936,3986.9,3986.8,1.6927]
[1761070518194,3.2078,3987.9,3987.8,0.45117]
[1761070518392,0.58394284,3987.9,3987.8,11.81287]
[1761070519095,2.08652,3988.2,3987.8,9.669]
[1761070519298,1.6354,3987.8,3987.5,1.6998]
[1761070519501,0.45116,3987.9,3987.6,9.664]
[1761070519502,0.58376045,3987.7,3987.6,9.664]
[1761070519701,0.58376045,3987.7,3987.6,11.36568035]
[1761070519906,0.00207355,3988.2,3988.1,1.6998]
[1761070520101,0.58580613,3988.2,3988.1,11.3628]
[1761070521004,2.17730613,3988.2,3988.1,9.663]
[1761070521198,2.17730613,3988.2,3987.6,1.62928035]
[1761070521199,5.58580613,3988.2,3987.6,1.62928035]
[1761070521394,1.5915,3987.7,3987.6,0.00188035]
[1761070521597,3.2078,3988.0,3987.7,2.07859]
[1761070521806,0.58334145,3987.9,3987.8,1.6274]
[1761070522008,1.5915,3987.7,3987.6,0.00188035]
[1761070522201,2.17484145,3987.7,3987.6,6.87688035]
[1761070522901,0.58334145,3987.7,3987.6,11.28428035]
[1761070523099,3.2078,3988.0,3987.8,1.6274]
[1761070523697,3.2078,3988.0,3987.9,0.45117]
[1761070523897,3.79108671,3988.0,3987.9,2.07857]
[1761070524504,3.79108671,3988.0,3987.9,1.6274]
[1761070524708,1.5915,3987.9,3987.8,0.45118]
[1761070524907,0.58328671,3987.9,3987.8,2.07858]
[1761070525206,3.2078,3988.0,3987.9,2.2744]
[1761070525704,0.00207355,3988.2,3988.1,1.6274]
[1761070525901,0.00207355,3988.2,3988.1,11.2744]
[1761070528410,1.59357355,3988.2,3988.1,9.647]
[1761070528707,1.5915,3987.7,3987.6,0.45309035]
[1761070528906,1.5915,3987.7,3987.6,10.08009035]
[1761070529101,1.59357355,3988.2,3988.0,0.45116]
[1761070529300,1.59357355,3988.2,3988.0,10.07816]
[1761070529507,1.59357355,3988.2,3988.1,1.6274]
[1761070529810,1.59357355,3988.2,3987.6,0.00188035]
[1761070529811,2.0427,3987.7,3987.6,0.00188035]
[1761070530005,5.2505,3987.7,3987.6,9.62588035]
[1761070530310,10.8326918,3987.7,3987.6,0.00188035]
[1761070531102,5.8326918,3987.7,3987.6,0.00188035]
[1761070531509,5.3814918,3987.7,3987.6,0.00188035]
[1761070531905,5.8326918,3987.7,3987.6,0.00188035]
[1761070532312,5.3814918,3987.7,3987.6,0.00188035]
[1761070532512,5.3814918,3987.7,3987.6,1.62928035]
[1761070532902,3.2078,3988.1,3988.0,0.45116]
[1761070533110,3.2078,3988.1,3988.0,11.68556]
[1761070533307,4.7993,3988.1,3988.0,10.05816]
[1761070533511,4.7993,3988.1,3988.0,9.607]
[1761070534208,5.38251012,3988.1,3988.0,9.607]
[1761070534816,4.7993,3988.1,3988.0,11.68556]
[1761070535116,3.2078,3988.1,3988.0,11.68556]
[1761070536117,3.79155066,3988.1,3988.0,11.68556]
[1761070537514,3.2078,3988.1,3988.0,11.68556]
[1761070538715,0.00207355,3988.2,3988.1,2.07855]
[1761070539519,0.00207355,3988.2,3987.6,0.00188035]
[1761070539520,1.5915,3987.7,3987.6,0.00188035]
[1761070539824,3.2078,3988.1,3987.9,0.45117]
[1761070540025,1.5915,3987.9,3987.6,9.57988035]
[1761070540208,4.7993,3987.7,3987.6,0.00188035]
[1761070541110,5.38391701,3987.7,3987.6,0.00188035]
[1761070541310,3.79241701,3987.7,3987.6,1.62928035]
[1761070541517,5.38391701,3987.7,3987.6,1.62928035]
[1761070541712,5.38391701,3987.7,3987.6,0.00188035]
[1761070541913,10.83511701,3987.7,3987.6,0.00188035]
[1761070542324,5.83511701,3987.7,3987.6,0.00188035]
[1761070542619,5.38391701,3987.7,3987.6,0.00188035]
[1761070542823,5.38391701,3987.7,3987.6,2.08049035]
[1761070543027,3.79241701,3987.7,3987.6,2.08049035]
[1761070543221,3.79241701,3987.7,3987.6,12.29749035]
[1761070543916,0.58461701,3987.7,3987.6,12.29749035]
[1761070544225,4.7993,3988.1,3988.0,2.07856]
[1761070544524,3.78993477,3988.1,3988.0,11.65056]
[1761070545226,3.2078,3988.1,3988.0,11.65056]
[1761070545819,0.00207355,3988.2,3988.0,10.02316]
[1761070546019,0.00207355,3988.2,3988.1,1.6274]
[1761070547418,0.00207355,3988.2,3988.1,6.6274]
[1761070547820,3.2078,3988.9,3988.6,0.647]
[1761070548121,0.58229295,3988.8,3988.7,11.63349]
[1761070548625,3.2078,3988.9,3988.8,1.6274]
[1761070548925,3.20981661,3988.9,3988.8,1.6274]
[1761070549126,0.00201661,3988.9,3988.8,1.6274]
[1761070550815,0.00201661,3988.9,3988.8,6.6274]
[1761070551016,0.88866041,3990.2,3990.0,0.45093]
[1761070551017,4.6102,3990.2,3990.0,0.45093]
[1761070551324,3.2078,3990.2,3990.1,10.9626]
[1761070551521,3.78941489,3990.2,3990.1,10.9626]
[1761070552018,3.79256887,3990.2,3990.1,10.9626]
[1761070552222,0.00315398,3990.2,3990.1,14.14563235]
[1761070552729,3.2078,3991.0,3990.3,1.4086]
[1761070552925,0.58128388,3990.9,3990.4,1.4086]
[1761070553120,3.2078,3991.0,3990.9,0.45084]
[1761070553321,3.78844581,3991.0,3990.9,11.41344]
[1761070553519,3.2078,3991.0,3990.9,11.41344]
[1761070553718,3.21022501,3991.0,3990.9,11.41601209]
[1761070554117,0.00242501,3991.0,3990.9,11.41601209]
[1761070555128,0.00242501,3991.0,3990.9,10.96417209]
[1761070555924,1.4024,3991.8,3991.4,0.577]
[1761070556130,1.4024,3991.8,3991.5,11.41136]
[1761070556322,3.2078,3991.9,3991.7,1.4086]
[1761070556522,3.2078,3991.9,3991.8,1.4086]
[1761070556931,3.2097599,3991.9,3991.8,1.4086]
[1761070557527,8.2097599,3991.9,3990.7,1.70413]
[1761070557831,1.4024,3991.2,3990.9,1.41117209]
[1761070558032,1.4024,3991.2,3991.0,6.904]
[1761070558324,3.2078,3991.3,3991.1,0.45081]
[1761070558529,3.2078,3991.3,3991.2,1.4086]
[1761070559023,4.6102,3991.3,3991.2,1.4086]
[1761070559226,1.4024,3991.2,3991.0,8.76342]
[1761070559421,1.4024,3991.0,3990.9,0.00257209]
[1761070559726,1.12731,3990.2,3989.1,1.4086]
[1761070559927,1.4024,3989.4,3989.0,4.91705]
[1761070560134,3.2078,3989.1,3989.0,6.32565]
[1761070560527,3.2078,3989.1,3989.0,5.8746]
[1761070560832,0.00210346,3989.1,3989.0,6.32803524]
[1761070561228,3.2078,3989.9,3989.7,1.4086]
[1761070561425,4.6102,3989.9,3989.2,1.4086]
[1761070561630,0.5969,3990.7,3989.0,0.00238524]
[1761070561631,1.4024,3989.2,3989.0,0.00238524]
[1761070561831,4.6102,3989.1,3989.0,0.00238524]
[1761070562233,4.61282641,3989.1,3989.0,0.00238524]
[1761070562933,9.61282641,3989.1,3989.0,0.00238524]
[1761070563135,10.18583054,3989.1,3989.0,0.00238524]
[1761070563321,1.4024,3989.0,3988.1,9.549]
[1761070563526,1.4024,3988.2,3988.1,9.549]
[1761070564435,1.4024,3988.2,3988.1,9.5515536]
[1761070564836,1.4024,3988.2,3988.1,0.0025536]
[1761070565734,1.4024,3988.2,3987.2,0.52833]
[1761070565735,0.45121,3987.7,3987.2,0.52833]
[1761070565925,1.4024,3987.5,3987.2,10.07733]
[1761070566127,0.45124,3987.4,3987.2,0.0151442]
[1761070566333,2.53058,3987.1,3985.6,1.4086]
[1761070566528,1.4024,3985.6,3985.3,5.5516]
[1761070566825,0.00281071,3985.6,3985.5,1.4086]
[1761070568835,3.2078,3986.1,3985.6,1.1286]
[1761070569143,4.6102,3986.7,3986.5,1.4086]
[1761070569331,1.4024,3986.6,3986.2,9.55]
[1761070569527,1.4024,3986.6,3986.0,10.00139]
[1761070569730,1.4024,3986.6,3986.3,1.85995]
[1761070569935,0.001859,3986.6,3986.4,1.4086]
[1761070570132,1.404259,3986.6,3986.1,1.85998]
[1761070570439,3.2078,3986.2,3986.1,1.4086]
[1761070572128,1.4024,3986.1,3985.8,10.00241]
[1761070572541,1.4024,3986.1,3985.9,0.4514]
[1761070573239,1.4024,3986.1,3985.8,9.551]
[1761070573640,1.4024,3985.9,3985.3,1.86207978]
[1761070573843,1.4024,3985.4,3985.3,0.00200978]
[1761070574141,3.2078,3985.5,3984.4,0.45157]
[1761070574142,1.4024,3985.1,3984.4,0.45157]
[1761070574335,3.2078,3984.7,3984.6,1.86015]
[1761070574842,1.4024,3984.6,3983.4,3.2078]
[1761070575142,3.2078,3984.3,3984.1,1.86021]
[1761070575331,1.4024,3984.2,3983.7,1.86250349]
[1761070575537,1.4024,3984.2,3983.8,10.00364]
[1761070576044,3.2078,3984.3,3984.2,0.4516]
[1761070576234,1.4024,3984.2,3983.8,9.552]
[1761070576542,4.6102,3984.3,3984.2,0.4516]
[1761070577145,1.4024,3984.2,3984.0,0.45161]
[1761070577536,1.4024,3984.2,3984.0,1.86021]
[1761070577734,1.4024,3985.3,3984.7,1.4086]
[1761070577939,3.2078,3985.4,3985.3,1.86007]
[1761070578144,1.4024,3986.2,3985.3,1.86007]
[1761070578145,0.06169733,3987.0,3985.4,1.4086]
[1761070578440,1.4024,3985.4,3984.5,1.4086]
[1761070578644,1.3827,3984.9,3984.4,6.11]
[1761070578848,3.2078,3984.5,3984.4,6.56157]
[1761070579041,1.3827,3984.8,3984.5,0.45156]
[1761070579241,3.2078,3984.9,3984.7,1.74943]
[1761070579441,3.2078,3984.9,3984.6,0.45155]
[1761070579648,1.3827,3984.8,3984.6,0.45155]
[1761070580049,1.3827,3984.8,3984.5,0.45156]
[1761070580246,1.3827,3984.8,3984.4,7.85947]
[1761070580451,4.5905,3984.5,3984.4,6.11]
[1761070580640,4.5905,3984.5,3983.5,4.33698]
[1761070580641,1.3922,3984.4,3983.7,0.45389349]
[1761070580947,3.2078,3984.0,3983.8,0.45164]
[1761070581150,1.3922,3984.4,3984.1,0.45161]
[1761070581544,1.3922,3984.4,3983.9,0.45162]
[1761070581746,1.3922,3983.9,3983.8,0.45164]
[1761070582345,3.2078,3984.0,3983.8,0.45164]
[1761070582553,1.3922,3983.9,3983.7,6.70190349]
[1761070584045,3.2078,3984.0,3983.9,0.45163]
[1761070584348,1.1286,3985.7,3983.9,0.45163]
[1761070584349,4.6,3984.9,3984.8,0.45153]
[1761070584548,2.87392963,3984.9,3984.8,2.33623]
[1761070584753,3.2078,3985.9,3985.8,1.81091]
[1761070585449,1.3922,3986.2,3985.9,0.4514]
[1761070585749,1.3922,3986.2,3985.9,1.3595]
[1761070585945,1.3922,3986.2,3986.0,1.81088]
[1761070586156,3.2078,3986.3,3986.1,1.81088]
[1761070586545,3.2078,3986.3,3985.9,0.45139]
[1761070586748,1.3922,3986.2,3985.9,0.45139]
[1761070586950,1.3922,3986.2,3986.0,0.45139]
[1761070587543,1.3922,3986.2,3985.6,10.9135]
[1761070587544,1.3922,3986.2,3985.8,0.4514]
[1761070587747,1.3922,3986.2,3985.6,9.554]
[1761070587947,1.3922,3986.2,3986.0,0.45139]
[1761070590061,1.3922,3986.2,3986.0,1.81089]
[1761070590559,3.2078,3986.3,3985.2,9.553]
[1761070590560,1.3922,3985.7,3985.2,9.553]
[1761070590759,0.001859,3986.6,3986.0,0.45139]
[1761070590760,3.2078,3986.1,3986.0,0.45139]
[1761070591058,3.2078,3986.1,3986.0,1.81089]
[1761070593064,3.2078,3986.5,3986.1,1.3595]
[1761070593263,3.2078,3986.5,3985.9,9.552]
[1761070593264,0.56898818,3986.4,3986.3,1.3595]
[1761070593463,1.96118818,3986.4,3986.3,0.45136]
[1761070593664,0.56898818,3986.4,3986.3,1.81086]
[1761070594167,3.2078,3986.5,3986.4,1.81085]
[1761070594461,3.77762431,3986.5,3986.4,1.81085]
[1761070594659,0.001859,3986.6,3986.5,2.33603]
[1761070594859,0.001859,3986.6,3986.5,15.09808049]
[1761070595059,3.2078,3987.4,3987.3,1.81074]
[1761070595254,3.75897464,3987.4,3987.3,1.81074]
[1761070595459,1.3922,3988.5,3987.8,1.81069]
[1761070595460,3.2078,3987.9,3987.8,1.81069]
[1761070595663,0.56985015,3987.9,3987.8,11.36169]
[1761070596057,0.57305448,3987.9,3987.8,11.36169]
[1761070596266,0.00320433,3987.9,3987.8,11.36169]
[1761070596472,0.00320433,3987.9,3987.8,16.36169]
[1761070596764,1.3922,3989.0,3987.8,16.36169]
[1761070596765,3.2078,3989.2,3989.1,1.81054]
[1761070596973,3.2078,3990.2,3989.9,1.3595]
[1761070597155,0.56972605,3990.1,3990.0,1.3595]
[1761070597463,3.2078,3990.7,3990.6,1.3595]
[1761070597768,3.2078,3991.1,3991.0,1.3595]
[1761070597957,1.3922,3991.0,3990.7,1.3595]
[1761070598261,1.3922,3991.0,3990.8,9.549]
[1761070598467,1.3922,3991.0,3990.6,0.00190751]
[1761070598675,4.6,3990.7,3990.6,9.54990751]
[1761070599067,4.6,3990.7,3990.6,10.90940751]
[1761070599068,3.2078,3990.7,3990.6,10.90940751]
[1761070599261,3.21093322,3991.1,3990.9,1.81033]
[1761070599475,3.21093322,3991.1,3991.0,1.3595]
[1761070600673,3.21093322,3991.1,3990.6,9.54990751]
[1761070600674,1.3922,3990.7,3990.6,0.00190751]
[1761070600880,4.6,3990.7,3990.6,0.00190751]
[1761070602076,3.2078,3990.7,3990.6,1.36140751]
[1761070602377,3.2078,3990.7,3990.6,0.00190751]
[1761070602562,4.6,3990.7,3990.6,0.00190751]
[1761070603276,3.2078,3990.7,3990.6,0.45278751]
[1761070603473,3.2078,3990.7,3990.6,1.81228751]
[1761070604570,4.60313322,3991.1,3990.8,1.3595]
[1761070604882,4.60313322,3991.1,3990.8,1.81035]
[1761070605067,3.21093322,3991.1,3990.8,1.3595]
[1761070605372,0.45084,3990.9,3990.6,0.00190751]
[1761070605580,5.05087,3990.7,3990.6,0.00190751]
[1761070605874,1.3922,3990.1,3989.8,9.54]
[1761070606182,1.3922,3989.9,3989.7,9.54]
[1761070606387,1.84311,3990.3,3989.7,1.81047]
[1761070606670,0.5102,3990.4,3989.5,9.991]
[1761070606671,1.3922,3990.0,3989.5,9.991]
[1761070606878,1.3922,3990.0,3989.5,10.90206155]
[1761070607077,1.3922,3990.0,3989.5,1.36206155]
[1761070607373,1.3922,3990.0,3989.8,1.3595]
[1761070607678,3.2078,3990.1,3989.8,1.81046]
[1761070607874,3.2078,3990.1,3990.0,1.3595]
[1761070608477,3.2078,3990.9,3990.6,1.12717]
[1761070608679,3.2078,3990.9,3990.8,1.81035]
[1761070609374,3.2078,3990.9,3990.8,9.538]
[1761070610171,3.2078,3990.9,3990.8,10.8975]
[1761070610971,1.75276,3990.8,3990.5,0.45089]
[1761070611167,1.3019,3990.7,3990.3,0.4509]
[1761070611481,4.5097,3990.4,3990.3,9.0589]
[1761070611976,4.5097,3990.4,3989.6,0.5252]
[1761070611977,1.3019,3990.3,3989.6,0.5252]
[1761070612170,1.3019,3990.2,3989.9,0.45095]
[1761070612377,1.3019,3990.2,3990.0,0.45094]
[1761070612575,1.3019,3990.2,3990.0,1.71924]
[1761070612871,3.2078,3990.8,3990.4,0.4509]
[1761070613078,1.75279,3990.5,3990.3,9.535]
[1761070613378,3.2078,3990.4,3989.9,1.2683]
[1761070613586,3.2078,3990.0,3989.9,1.71926]
[1761070613882,4.5097,3990.0,3989.9,9.98596]
[1761070615676,3.2078,3990.0,3989.9,9.98596]
[1761070615877,3.2078,3990.0,3989.9,11.25426]
[1761070617672,3.2078,3990.4,3990.3,1.71921]
[1761070617977,0.45088,3990.6,3990.4,1.2683]
[1761070618178,0.45097,3989.8,3989.5,0.00256155]
[1761070618483,4.5097,3990.0,3989.5,1.27086155]
[1761070618677,1.3019,3989.9,3989.5,1.27086155]
[1761070618978,3.2078,3990.0,3989.6,1.2683]
[1761070619180,3.2078,3990.0,3989.9,1.71926]
[1761070619577,3.2078,3990.0,3989.9,11.25126]
[1761070620975,4.5097,3990.0,3989.9,9.98296]
[1761070621182,3.77196547,3990.0,3989.9,11.25126]
[1761070622388,5.07386547,3990.0,3989.9,9.98296]
[1761070622983,1.75289,3989.6,3989.5,0.00256155]
[1761070623189,1.3019,3988.8,3988.3,1.2683]
[1761070623384,1.3019,3988.8,3988.1,1.21669333]
[1761070623385,0.56602657,3988.7,3988.6,2.2325]
[1761070623686,0.88866041,3990.1,3989.9,1.2683]
[1761070623982,2.19056041,3990.1,3989.9,1.71926]
[1761070624186,0.88866041,3990.0,3989.9,1.72119738]
[1761070624486,0.88866041,3990.0,3989.9,0.00193738]
[1761070624679,0.88866041,3990.0,3989.9,0.45289738]
[1761070624889,4.96062,3990.2,3990.0,1.2683]
[1761070625183,1.3019,3990.0,3989.9,0.00193738]
[1761070625385,2.19482178,3990.0,3989.9,1.27023738]
[1761070625688,2.64576178,3990.0,3989.9,0.00193738]
[1761070625888,2.19482178,3990.0,3989.9,0.45288738]
[1761070626092,1.34385178,3990.1,3989.9,0.00193738]
[1761070626386,1.75284,3990.0,3989.9,0.00193738]
[1761070626682,1.3019,3989.0,3988.5,0.4511]
[1761070626883,4.5097,3988.6,3988.5,0.45111]
[1761070627087,3.2078,3988.6,3987.6,3.2078]
[1761070627287,3.2078,3988.6,3986.8,1.33846113]
[1761070627288,3.2078,3987.7,3987.5,1.71952]
[1761070627588,1.3019,3987.4,3987.2,9.527]
[1761070627888,1.3019,3987.3,3987.2,0.0025867]
[1761070628190,3.2078,3987.3,3987.2,1.2708867]
[1761070628482,0.00203535,3987.7,3987.6,1.2683]
[1761070630287,0.00203535,3987.7,3987.6,6.2683]
[1761070630486,0.00012784,3987.7,3987.6,6.2683]
[1761070630878,4.50982784,3987.7,3987.2,0.0025867]
[1761070631085,4.50982784,3987.7,3987.4,0.45123]
[1761070631086,1.3019,3987.6,3987.4,0.45123]
[1761070631287,0.00012784,3987.7,3987.6,1.2683]
[1761070631683,3.20792784,3987.7,3987.6,1.2683]
[1761070632999,3.20792784,3987.7,3987.6,10.7953]
[1761070633186,3.20792784,3987.7,3987.6,1.2683]
[1761070633386,1.3019,3987.3,3987.2,0.0025867]
[1761070633686,3.2078,3987.3,3987.2,1.2708867]
[1761070633988,3.2078,3987.3,3987.2,1.7839867]
[1761070634889,3.2078,3987.3,3987.2,1.2708867]
[1761070636295,3.2078,3987.3,3987.2,0.0025867]
[1761070636601,4.5097,3987.3,3987.2,0.0025867]
[1761070636991,3.2078,3987.3,3987.2,1.2708867]
[1761070637190,3.2078,3987.3,3987.2,1.7839867]
[1761070637686,0.00012784,3987.7,3987.3,1.2683]
[1761070637894,0.00012784,3987.7,3987.6,0.45121]
[1761070638192,0.00012784,3987.7,3987.6,9.97621]
[1761070640799,4.82562,3988.4,3988.3,0.45113]
[1761070640800,3.2078,3988.4,3988.3,0.45113]
[1761070640995,3.2078,3988.4,3988.3,9.524]
[1761070641201,4.3428,3988.4,3988.3,9.97513]
[1761070641388,3.2078,3988.4,3988.3,11.16093]
[1761070641796,3.21012177,3988.4,3988.3,11.16093]
[1761070643099,3.2078,3988.8,3988.7,1.63689]
[1761070643296,3.2078,3989.7,3989.6,1.63679]
[1761070643498,3.2078,3989.7,3989.6,11.15879]
[1761070644305,3.20990194,3989.7,3989.6,11.15879]
[1761070644802,3.20990194,3989.7,3989.6,10.7078]
[1761070645004,4.34490194,3989.7,3989.6,9.522]
[1761070645204,1.135,3989.2,3989.0,0.45105]
[1761070645401,0.45108,3988.8,3988.4,0.45112]
[1761070645704,1.58606,3989.0,3988.7,1.1858]
[1761070645902,1.135,3988.6,3988.2,1.1858]
[1761070646097,1.59029,3989.3,3987.6,0.45121]
[1761070646098,1.135,3988.0,3987.6,0.45121]
[1761070646299,3.2078,3987.9,3987.8,1.1858]
[1761070646502,0.89314961,3989.5,3988.8,1.1858]
[1761070646701,1.01434753,3989.4,3989.2,1.1858]
[1761070646901,0.56333753,3989.3,3989.2,1.63683]
[1761070647108,3.2078,3989.6,3989.5,1.6368]
[1761070647407,0.00210194,3989.7,3989.6,1.6317]
[1761070648507,0.00210194,3989.7,3989.6,6.6317]
[1761070649703,0.00210194,3989.7,3989.6,9.89156816]
[1761070649903,3.2078,3991.0,3989.8,1.1858]
[1761070650103,1.135,3991.5,3990.9,1.1858]
[1761070650305,3.2078,3991.6,3991.0,9.517]
[1761070650512,3.2078,3991.6,3991.4,1.1858]
[1761070650700,3.2078,3991.6,3991.5,9.516]
[1761070651003,3.21008974,3991.6,3991.5,9.51823468]
[1761070651203,3.21008974,3991.6,3991.5,10.70403468]
[1761070651599,4.34508974,3991.6,3991.5,9.51823468]
[1761070651804,9.34508974,3991.6,3991.5,9.51723468]
[1761070652195,9.34508974,3991.6,3991.5,10.70303468]
[1761070652196,8.21008974,3991.6,3991.5,10.70303468]
[1761070652404,9.34508974,3991.6,3991.5,9.51723468]
[1761070653408,3.21008974,3991.6,3991.5,11.15381468]
[1761070653607,3.21008974,3991.6,3991.5,9.96801468]
[1761070653808,3.21008974,3991.6,3991.5,9.51723468]
[1761070654111,4.34508974,3991.6,3991.5,9.51723468]
[1761070655209,3.21008974,3991.6,3991.5,9.51723468]
[1761070655512,3.21008974,3991.6,3991.5,10.70303468]
[1761070656312,3.21008974,3991.6,3991.5,0.00223468]
[1761070656611,4.34508974,3991.6,3991.5,0.00223468]
[1761070657306,9.34508974,3991.6,3991.5,0.00223468]
[1761070658509,4.34508974,3991.6,3991.5,0.00223468]
[1761070660108,9.34508974,3991.6,3991.5,0.00223468]
[1761070661016,4.34508974,3991.6,3991.5,0.00223468]
[1761070661719,4.34508974,3991.6,3991.5,0.45301468]
[1761070661912,4.79585974,3991.6,3991.5,0.45301468]
[1761070662113,4.79585974,3991.6,3991.5,0.00223468]
[1761070662917,9.79585974,3991.6,3991.5,0.00223468]
[1761070663517,0.45084,3990.9,3990.8,0.45085]
[1761070663813,4.79364,3990.9,3990.8,9.95385]
[1761070664018,4.3428,3990.9,3990.8,1.63665]
[1761070664315,3.2078,3990.9,3990.8,1.63665]
[1761070664716,3.2078,3990.9,3990.8,1.63942609]
[1761070665708,4.79364,3990.9,3990.8,0.00277609]
[1761070666518,9.79364,3990.9,3990.8,0.00277609]
[1761070667313,51.1502681,3990.9,3990.8,0.00277609]
[1761070667615,0.45096,3989.9,3989.8,0.45097]
[1761070667818,1.58596,3989.9,3989.8,11.04177]
[1761070668225,1.58596,3989.9,3989.8,9.405]
[1761070668520,0.6764,3988.6,3988.2,1.1858]
[1761070668721,1.12754,3988.3,3988.2,0.00225905]
[1761070668913,3.2078,3988.4,3988.2,1.18805905]
[1761070669116,3.2078,3988.4,3988.3,1.1858]
[1761070669323,0.00189986,3988.6,3988.5,1.63691]
[1761070669619,0.00189986,3988.6,3988.5,1.1858]
[1761070670021,0.00189986,3988.6,3988.5,10.6848]
[1761070670218,0.00189986,3988.6,3988.5,11.13592]
[1761070670419,0.00189986,3988.6,3988.5,16.13592]
[1761070671014,0.00189986,3988.6,3988.5,15.6848]
[1761070671329,0.00189986,3988.6,3988.5,1.1858]
[1761070671716,0.00189986,3988.6,3988.5,8.2148]
[1761070671917,0.00189986,3988.6,3988.5,13.2148]
[1761070672519,3.2078,3989.4,3989.3,0.4198]
[1761070672720,3.2078,3989.4,3989.3,11.42342]
[1761070673629,3.2078,3989.8,3989.6,1.0536]
[1761070673827,3.20970092,3989.8,3989.7,1.0536]
[1761070674323,3.20970092,3989.8,3989.7,6.0536]
[1761070674324,0.00190092,3989.8,3989.7,6.0536]
[1761070674722,0.00190092,3989.8,3989.7,1.0536]
[1761070676028,0.00190092,3989.8,3989.7,6.0536]
[1761070676325,3.2078,3991.0,3990.8,1.0536]
[1761070676532,3.2078,3991.0,3990.9,1.0536]
[1761070677120,3.21084052,3991.0,3990.9,1.0536]
[1761070677321,3.21084052,3991.0,3990.8,9.497]
[1761070677522,0.508,3990.9,3990.8,9.497]
[1761070677930,0.45089,3990.7,3990.4,1.0536]
[1761070678123,3.2078,3990.5,3990.4,1.0536]
[1761070681736,3.2078,3990.5,3990.4,6.0536]
[1761070682029,3.2078,3990.5,3990.1,1.0536]
[1761070682236,0.95894,3990.2,3990.0,9.493]
[1761070682537,3.2078,3990.1,3990.0,10.5466]
[1761070682728,3.2078,3990.1,3990.0,10.9664]
[1761070683228,3.2078,3990.1,3990.0,9.493]
[1761070683931,3.2078,3990.1,3990.0,10.9664]
[1761070684927,3.2078,3990.1,3989.4,1.50462]
[1761070685125,3.2078,3989.5,3989.4,1.50463]
[1761070685436,3.2078,3989.5,3989.4,9.35663]
[1761070685637,3.2078,3989.5,3989.4,14.35663]
[1761070685932,3.2078,3990.5,3990.4,1.50452]
[1761070686235,3.2078,3990.5,3990.4,10.5436]
[1761070687122,3.2078,3990.5,3990.4,1.0536]
[1761070687323,0.45093,3990.3,3990.1,1.0536]
[1761070687525,8.2078,3990.5,3990.3,1.0536]